bitfinex/quotes_BTCUSD_20250226
["timestamp","ask_amount","ask_price","bid_price","bid_amount"]
[1740600652847,0.08114777,84230.0,84214.0,0.09494422]
[1740600653052,0.02159889,84230.0,84214.0,0.09494422]
[1740600653327,0.02159889,84229.0,84224.0,0.09494422]
[1740600653447,0.02159889,84229.0,84225.0,0.3831]
[1740600654294,0.01864709,84233.0,84225.0,0.0831]
[1740600654295,0.02159889,84228.0,84225.0,0.0831]
[1740600654710,0.0815381,84228.0,84214.0,0.0832]
[1740600654911,0.00815381,84227.0,84214.0,0.0832]
[1740600655115,0.05931015,84226.0,84214.0,0.0832]
[1740600656389,0.08082057,84225.0,84214.0,0.0832]
[1740600656746,0.02159889,84225.0,84215.0,0.09494422]
[1740600657196,0.02159889,84225.0,84216.0,0.01454085]
[1740600657414,0.0598998,84233.0,84216.0,0.31454085]
[1740600657415,0.02159889,84224.0,84216.0,0.31454085]
[1740600658170,0.04024422,84223.0,84215.0,0.29467199]
[1740600658611,0.04024422,84223.0,84215.0,0.29508662]
[1740600659197,0.04024422,84223.0,84216.0,0.00166212]
[1740600659512,0.04024422,84223.0,84215.0,0.29508662]
[1740600659716,0.01864533,84223.0,84215.0,0.00041463]
[1740600659923,0.05915429,84222.0,84215.0,0.00041463]
[1740600660722,0.05974792,84238.0,84204.0,0.0767]
[1740600660927,0.02099264,84237.0,84204.0,0.0767]
[1740600661124,0.05907991,84236.0,84204.0,0.0767]
[1740600662578,0.05907991,84236.0,84199.0,0.0497]
[1740600662579,0.01454085,84235.0,84199.0,0.0497]
[1740600662723,0.01454085,84235.0,84184.0,0.19972777]
[1740600662724,0.13624888,84230.0,84184.0,0.19972777]
[1740600662930,0.05922168,84225.0,84170.0,0.0754]
[1740600663133,0.05938953,84220.0,84170.0,0.0754]
[1740600663338,0.05973407,84218.0,84157.0,0.08876]
[1740600663941,0.0597042,84213.0,84157.0,0.08876]
[1740600664142,0.05914242,84216.0,84157.0,0.0754]
[1740600664356,0.05914242,84216.0,84160.0,0.01012425]
[1740600664563,0.05906606,84214.0,84166.0,0.09494422]
[1740600664739,0.05906606,84214.0,84168.0,0.0486]
[1740600665143,0.05906606,84214.0,84175.0,0.09494422]
[1740600665349,0.05906606,84214.0,84175.0,0.10830422]
[1740600665778,0.01454085,84213.0,84175.0,0.01336]
[1740600665956,0.05900283,84210.0,84175.0,0.01336]
[1740600666154,0.01454085,84211.0,84175.0,0.01336]
[1740600666352,0.05900283,84210.0,84175.0,0.01336]
[1740600666552,0.05985647,84208.0,84175.0,0.01336]
[1740600666791,0.0591455,84206.0,84175.0,0.01336]
[1740600667186,0.0591455,84206.0,84176.0,0.09494422]
[1740600667415,0.0591455,84206.0,84176.0,0.29467199]
[1740600667618,0.02180663,84207.0,84177.0,0.08416277]
[1740600667818,0.0591455,84206.0,84177.0,0.0825]
[1740600668020,0.035782,84216.0,84168.0,0.0486]
[1740600668021,0.01865395,84200.0,84168.0,0.0486]
[1740600668258,0.01454085,84196.0,84153.0,0.0488]
[1740600668570,0.01454085,84192.0,84153.0,0.0488]
[1740600668714,0.01454085,84188.0,84141.0,0.0812]
[1740600668901,0.05904923,84185.0,84142.0,0.00208709]
[1740600669111,0.05968871,84183.0,84142.0,0.0004234]
[1740600669335,0.01865906,84179.0,84142.0,0.20015117]
[1740600670426,0.05942787,84181.0,84142.0,0.20015117]
[1740600670626,0.01865841,84170.0,84142.0,0.20015117]
[1740600671033,0.05942787,84181.0,84142.0,0.20015117]
[1740600671230,0.3428287,84180.0,84149.0,0.09494422]
[1740600671428,0.05968871,84183.0,84158.0,0.09494422]
[1740600671626,0.05968871,84183.0,84159.0,0.0488]
[1740600672063,0.05904923,84185.0,84161.0,0.0763]
[1740600672247,0.05968871,84183.0,84161.0,0.0763]
[1740600672868,0.09776801,84184.0,84167.0,0.09494422]
[1740600674165,0.01865585,84180.0,84167.0,0.09494422]
[1740600674810,0.05921973,84186.0,84167.0,0.29467199]
[1740600674982,0.05921973,84186.0,84167.0,0.19972777]
[1740600675370,0.05936217,84191.0,84167.0,0.19972777]
[1740600675573,0.01454085,84189.0,84167.0,0.19985197]
[1740600675758,0.01454085,84187.0,84167.0,0.19985197]
[1740600675954,0.05936443,84182.0,84167.0,0.19985197]
[1740600676164,0.31454085,84181.0,84167.0,0.0001242]
[1740600676365,0.31454085,84179.0,84142.0,0.0004234]
[1740600676569,0.31454085,84179.0,84129.0,0.0827234]
[1740600676570,0.05918776,84166.0,84129.0,0.0004234]
[1740600676776,0.07374582,84161.0,84110.0,6.105e-05]
[1740600676973,0.01454085,84158.0,84110.0,6.105e-05]
[1740600677170,0.31454085,84156.0,84110.0,6.105e-05]
[1740600677426,0.01454085,84154.0,84101.0,0.0824]
[1740600677649,0.31454085,84152.0,84102.0,0.008858]
[1740600677953,0.31454085,84152.0,84101.0,0.0824]
[1740600678163,0.31454085,84152.0,84103.0,0.38022588]
[1740600678596,0.31454085,84152.0,84103.0,0.38063977]
[1740600678804,0.035815,84151.0,84104.0,0.30166446]
[1740600679002,0.035815,84151.0,84113.0,0.3]
[1740600679200,0.02131598,84150.0,84113.0,0.3]
[1740600679407,0.01866571,84140.0,84113.0,0.3]
[1740600680432,0.19601048,84140.0,84103.0,0.00041389]
[1740600680636,0.22714477,84139.0,84103.0,0.00041389]
[1740600680862,0.01454085,84136.0,84103.0,0.00041389]
[1740600681051,0.3815,84137.0,84103.0,0.00041389]
[1740600681052,0.31454085,84134.0,84103.0,0.00041389]
[1740600681271,0.01866894,84131.0,84103.0,0.00041389]
[1740600682552,0.01454085,84130.0,84103.0,0.00041389]
[1740600682934,0.3,84113.0,84103.0,0.00041389]
[1740600683140,0.01454085,84102.0,84090.0,0.0004235]
[1740600683366,0.38022588,84095.0,84078.0,0.0003]
[1740600683570,0.17734477,84094.0,84078.0,0.0003]
[1740600684025,0.17734477,84094.0,84056.0,0.0012]
[1740600684563,0.05961843,84097.0,84062.0,0.19972777]
[1740600684785,0.01141292,84096.0,84062.0,0.19972777]
[1740600684986,0.01867656,84093.0,84062.0,0.19972777]
[1740600690410,0.19602133,84093.0,84056.0,0.0012]
[1740600690648,0.85757065,84092.0,84056.0,0.0012]
[1740600690859,0.03454085,84079.0,84070.0,0.19710932]
[1740600691067,0.03454085,84079.0,84056.0,0.0012]
[1740600691068,0.02,84069.0,84056.0,0.0012]
[1740600691293,0.02,84066.0,84056.0,0.0012]
[1740600691489,0.17734477,84065.0,84056.0,0.0012]
[1740600691704,0.45384979,84071.0,84056.0,0.0012]
[1740600691705,0.17734477,84064.0,84056.0,0.0012]
[1740600691913,0.17734477,84063.0,84056.0,0.0012]
[1740600692112,0.17734477,84063.0,84046.0,0.00502943]
[1740600692330,0.38022588,84048.0,84046.0,0.00502943]
[1740600692690,1.117964,84047.0,84020.0,0.01119]
[1740600692886,0.0598654,84045.0,84020.0,0.01119]
[1740600693087,0.0592251,84043.0,84020.0,0.01119]
[1740600693446,0.05939731,84039.0,84020.0,0.01119]
[1740600693665,0.05955939,84035.0,84020.0,0.01119]
[1740600693828,0.05933741,84033.0,84010.0,6.121e-05]
[1740600694037,1.702141,84032.0,84010.0,6.121e-05]
[1740600694196,1.08511529,84031.0,84010.0,6.121e-05]
[1740600694409,0.05902055,84027.0,84010.0,6.121e-05]
[1740600694685,0.05934698,84025.0,84010.0,6.121e-05]
[1740600694888,4.501947,84024.0,84010.0,6.121e-05]
[1740600695161,2.72357432,84023.0,84010.0,6.121e-05]
[1740600695340,1.962631,84022.0,84010.0,6.121e-05]
[1740600695550,0.05907706,84020.0,84010.0,6.121e-05]
[1740600695759,0.35906045,84018.0,84010.0,6.121e-05]
[1740600695960,0.35991064,84016.0,84010.0,6.121e-05]
[1740600696283,0.37433143,84014.0,84000.0,0.42752173]
[1740600696487,0.37433143,84014.0,84000.0,0.12961602]
[1740600696488,0.01454085,84010.0,84000.0,0.12961602]
[1740600696735,0.05952325,84007.0,83992.0,0.0004235]
[1740600696905,2.862894,84006.0,83992.0,0.0004235]
[1740600697108,0.81003132,84005.0,83992.0,0.0004235]
[1740600697284,0.05901002,84002.0,83992.0,0.0004235]
[1740600697641,0.3,84003.0,83992.0,0.0004235]
[1740600697642,0.35902213,84000.0,83992.0,0.0004235]
[1740600697855,0.05997194,84003.0,83992.0,0.0004235]
[1740600698017,0.02977243,84059.0,83998.0,0.0023294]
[1740600698018,0.05977295,84001.0,83998.0,0.0023294]
[1740600698800,0.06018612,84001.0,83947.0,0.38022588]
[1740600699021,0.07242213,84000.0,83967.0,0.38022588]
[1740600699226,0.01225148,84001.0,83967.0,0.38022588]
[1740600699430,0.05906727,83999.0,83976.0,0.38022588]
[1740600699639,0.0134,84000.0,83976.0,0.38022588]
[1740600700358,0.01225148,84001.0,83995.0,0.38022588]
[1740600700536,0.01225148,84001.0,83995.0,0.28022588]
[1740600700733,0.01225148,84001.0,83985.0,0.38022588]
[1740600700942,0.00884423,83986.0,83985.0,0.38022588]
[1740600701181,0.02068254,83986.0,83985.0,0.72022588]
[1740600701391,0.02068254,83986.0,83985.0,0.68022588]
[1740600701562,0.02068254,83986.0,83985.0,0.38022588]
[1740600702072,0.01375085,83986.0,83985.0,0.72022588]
[1740600702489,0.01183831,83986.0,83985.0,0.72022588]
[1740600702691,0.01091208,83986.0,83985.0,0.73476673]
[1740600702944,0.01091208,83986.0,83985.0,0.78086673]
[1740600703158,0.50041317,84001.0,84000.0,0.05454085]
[1740600703451,0.24421317,84001.0,84000.0,0.43444085]
[1740600703598,0.01070183,84009.0,84008.0,0.02]
[1740600703803,0.05923294,84054.0,84031.0,0.04]
[1740600704025,0.05936874,84075.0,84034.0,0.02]
[1740600704300,0.05924885,84053.0,84039.0,0.02]
[1740600704484,0.05991928,84061.0,84037.0,0.38022588]
[1740600704644,0.09813575,84037.0,84026.0,0.02]
[1740600704852,0.05962271,84036.0,84022.0,0.38022588]
[1740600705054,0.05962271,84036.0,84028.0,0.02]
[1740600705265,0.05962271,84036.0,84028.0,0.02012425]
[1740600705461,0.05962271,84036.0,84031.0,0.38022588]
[1740600705782,0.09813575,84037.0,84031.0,0.38022588]
[1740600705985,0.09813575,84037.0,84036.0,0.02]
[1740600706351,0.09813575,84037.0,84035.0,0.02]
[1740600706570,0.09813575,84037.0,84036.0,0.02]
[1740600706784,0.09813575,84037.0,84033.0,0.02]
[1740600706992,0.0593617,84051.0,84034.0,0.02]
[1740600707398,0.3593617,84051.0,84028.0,0.00012425]
[1740600707636,0.07443148,84048.0,84028.0,0.00012425]
[1740600707814,0.05985035,84046.0,84028.0,0.00012425]
[1740600708014,0.0599734,84042.0,83987.0,0.02]
[1740600708213,0.0599734,84042.0,83986.0,0.24396]
[1740600708214,0.05914898,84031.0,83986.0,0.24396]
[1740600708422,0.05993367,84039.0,84034.0,0.0001]
[1740600708775,0.05965254,84037.0,84034.0,0.0001]
[1740600708910,0.35965254,84037.0,84034.0,0.0001]
[1740600709339,0.05902787,84035.0,84034.0,0.0001]
[1740600709501,0.35902787,84035.0,84034.0,0.0001]
[1740600709702,0.01987575,84033.0,83986.0,0.24396]
[1740600709903,0.05973885,84030.0,83988.0,0.00012425]
[1740600710136,0.05973885,84030.0,83986.0,0.24396]
[1740600710137,0.05973885,84030.0,84026.0,0.0004248]
[1740600710358,0.35926618,84028.0,84026.0,0.0004248]
[1740600710986,0.05995876,84027.0,84026.0,0.0004248]
[1740600711161,0.25070353,84027.0,84026.0,0.0004248]
[1740600711523,0.25070353,84027.0,83968.0,0.0005]
[1740600711524,0.01987575,84003.0,83968.0,0.0005]
[1740600711663,0.01454085,84024.0,83968.0,0.0005]
[1740600711664,0.38100001,83985.0,83968.0,0.0005]
[1740600712307,0.40087576,83985.0,83968.0,0.0005]
[1740600712505,0.38100001,83985.0,83968.0,0.0005]
[1740600712945,0.00012381,83985.0,83949.0,0.244]
[1740600713129,0.06011315,83985.0,83949.0,0.244]
[1740600713350,0.05922366,83983.0,83949.0,0.244]
[1740600714063,0.05922366,83983.0,83957.0,0.02]
[1740600714372,0.0596935,83984.0,83965.0,0.02]
[1740600714530,0.00012381,83985.0,83972.0,0.02]
[1740600714848,0.0596935,83984.0,83972.0,0.02]
[1740600715053,0.0596935,83984.0,83967.0,0.38100001]
[1740600715280,0.0596935,83984.0,83966.0,0.43513183]
[1740600716035,0.0595587,83997.0,83966.0,0.43513183]
[1740600716235,0.0595587,83997.0,83966.0,0.435545]
[1740600716439,0.05940108,83990.0,83966.0,0.435645]
[1740600716762,0.01454085,83984.0,83966.0,0.435645]
[1740600717182,0.0594912,83977.0,83966.0,0.435645]
[1740600717334,0.38100001,83978.0,83966.0,0.435645]
[1740600717335,0.0744636,83976.0,83966.0,0.435645]
[1740600717540,0.3283,83986.0,83966.0,0.435645]
[1740600717744,0.05924275,83985.0,83966.0,0.435645]
[1740600718224,0.3283,83986.0,83966.0,0.435645]
[1740600718225,0.05964493,83983.0,83966.0,0.435645]
[1740600718402,0.38100001,83975.0,83966.0,0.435645]
[1740600721511,0.05968806,83985.0,83966.0,0.435645]
[1740600722328,0.05953068,83989.0,83966.0,0.435645]
[1740600722665,0.0592583,84002.0,83967.0,0.32]
[1740600722804,0.0592583,84002.0,83968.0,0.02]
[1740600723001,0.59818,84003.0,83977.0,0.02]
[1740600723298,0.05969598,84020.0,83979.0,0.02]
[1740600723443,0.05973942,83979.0,83966.0,0.4360686]
[1740600724485,0.38100001,83980.0,83966.0,0.4360686]
[1740600724486,0.35964872,83977.0,83966.0,0.4360686]
[1740600724689,0.07416384,83976.0,83966.0,0.4360686]
[1740600725301,0.3283,83975.0,83966.0,0.4360686]
[1740600725543,0.01454085,83973.0,83966.0,0.4360686]
[1740600725662,0.02381,83969.0,83966.0,0.4360686]
[1740600725882,0.32381,83967.0,83966.0,0.20645565]
[1740600726087,1.38859322,83967.0,83966.0,0.08883628]
[1740600726397,0.02381,83959.0,83914.0,0.000424]
[1740600726605,0.32381,83957.0,83914.0,0.000424]
[1740600726799,0.342449,83956.0,83914.0,0.000424]
[1740600726979,0.122306,83955.0,83914.0,0.000424]
[1740600727181,0.27048301,83954.0,83914.0,0.000424]
[1740600727585,0.3,83953.0,83914.0,0.000424]
[1740600727785,0.05912334,83954.0,83920.0,0.02]
[1740600727994,0.05912334,83954.0,83914.0,0.000424]
[1740600727995,0.05912334,83954.0,83936.0,0.02]
[1740600728196,0.05955,83959.0,83935.0,0.02]
[1740600728394,0.05955,83959.0,83934.0,0.1246]
[1740600728678,0.06337587,83960.0,83953.0,0.15688621]
[1740600728897,0.05955,83959.0,83955.0,0.02]
[1740600729141,0.06337587,83960.0,83955.0,0.02]
[1740600729334,0.06337587,83960.0,83958.0,0.02]
[1740600729637,0.06337587,83960.0,83959.0,0.02]
[1740600729840,0.00041445,83967.0,83966.0,0.02]
[1740600731013,0.10301136,83977.0,83976.0,0.02]
[1740600731216,0.10301136,83977.0,83976.0,0.86492453]
[1740600731417,0.05961271,84026.0,83988.0,0.02]
[1740600731617,0.59854,84046.0,83994.0,0.02]
[1740600731618,0.05957123,84038.0,83994.0,0.02]
[1740600731858,0.05957123,84038.0,83997.0,0.02]
[1740600732058,0.05957123,84038.0,83993.0,0.38100001]
[1740600732059,0.05957123,84038.0,84002.0,5e-08]
[1740600732362,0.05957123,84038.0,84005.0,0.02]
[1740600732519,0.05909576,84052.0,84012.0,0.38100001]
[1740600732724,0.05971663,84058.0,84012.0,0.91125988]
[1740600732937,0.05971663,84058.0,84011.0,0.02]
[1740600732938,0.05971663,84058.0,84015.0,0.09519843]
[1740600733347,0.05971663,84058.0,84024.0,0.09519843]
[1740600733348,0.06013159,84058.0,84024.0,0.09519843]
[1740600734283,0.05968371,84057.0,84025.0,0.02]
[1740600734651,0.05968371,84057.0,84033.0,0.09519843]
[1740600734773,0.05968371,84057.0,84031.0,0.02]
[1740600734974,0.05909576,84052.0,84009.0,0.02]
[1740600735322,0.35909576,84052.0,84001.0,0.0685]
[1740600735623,0.35929172,84042.0,83990.0,0.02]
[1740600735807,0.35929172,84042.0,83985.0,0.02]
[1740600735955,0.35929172,84042.0,83997.0,0.02]
[1740600736311,0.35929172,84042.0,84004.0,0.06044633]
[1740600736520,0.09519843,84041.0,84004.0,0.06044633]
[1740600736743,0.35901723,84040.0,83990.0,0.02]
[1740600736918,0.35901723,84040.0,83998.0,0.02]
[1740600737287,0.0134,84048.0,83987.0,0.02]
[1740600737288,0.01454085,84037.0,83987.0,0.02]
[1740600737505,0.35954045,84018.0,83976.0,0.2642]
[1740600737823,0.37294045,84018.0,83976.0,0.2442]
[1740600738027,0.37294045,84018.0,83978.0,0.02]
[1740600738229,0.35913685,84009.0,83976.0,0.2442]
[1740600738444,0.35962897,83998.0,83967.0,0.19972777]
[1740600738767,0.35962897,83998.0,83957.0,0.0465]
[1740600738918,0.05937387,83995.0,83967.0,0.00012381]
[1740600739102,0.09519843,83990.0,83967.0,0.00012381]
[1740600739310,0.37243401,83989.0,83967.0,0.00012381]
[1740600739507,0.35924287,83980.0,83967.0,0.00012381]
[1740600740514,0.01454085,83979.0,83967.0,0.00012381]
[1740600740718,0.05919341,83978.0,83967.0,0.00012381]
[1740600740952,0.01454085,83977.0,83967.0,0.00012381]
[1740600741119,0.05994027,83988.0,83967.0,0.00012381]
[1740600741321,0.05994027,83988.0,83966.0,4.826e-05]
[1740600741559,0.05934106,83987.0,83966.0,4.826e-05]
[1740600742110,0.00012429,83988.0,83966.0,0.02004826]
[1740600742111,0.005,83967.0,83966.0,0.02004826]
[1740600742282,0.005,83967.0,83966.0,0.10324826]
[1740600742604,0.005,83967.0,83966.0,0.40324826]
[1740600742818,0.005,83967.0,83966.0,0.41778911]
[1740600743302,0.00012429,83988.0,83986.0,0.02]
[1740600743508,0.00012429,83988.0,83987.0,0.02]
[1740600744165,0.05934106,83987.0,83966.0,4.826e-05]
[1740600744358,0.10414445,83980.0,83966.0,4.826e-05]
[1740600744477,0.05915088,83979.0,83966.0,4.826e-05]
[1740600745084,0.05950646,84005.0,83966.0,4.826e-05]
[1740600745282,0.05950646,84005.0,83967.0,0.3273]
[1740600745489,0.05950646,84005.0,83987.0,0.0001]
[1740600745762,0.05903051,84014.0,83987.0,0.0001]
[1740600745892,0.059494,84019.0,83988.0,0.3273]
[1740600746102,0.59854,84020.0,83989.0,0.0807]
[1740600746301,0.05949035,84032.0,83989.0,0.1007]
[1740600746555,0.05946878,84030.0,83989.0,0.1007]
[1740600746726,0.35946878,84030.0,83989.0,0.1007]
[1740600746921,0.35948418,84028.0,83989.0,0.0807]
[1740600747125,0.359494,84019.0,83988.0,0.3273]
[1740600747752,0.35941344,84017.0,83987.0,0.0001]
[1740600749909,0.05967543,84016.0,83987.0,0.0001]
[1740600751710,0.38797543,84016.0,83987.0,0.0001]
[1740600751890,0.05903051,84014.0,83987.0,0.0001]
[1740600752085,0.05944678,84004.0,83987.0,0.0001]
[1740600752289,0.05979487,83995.0,83987.0,0.0001]
[1740600752545,0.05937161,83993.0,83987.0,0.0001]
[1740600752829,0.05937161,83993.0,83966.0,0.00017255]
[1740600752830,0.05938113,83987.0,83966.0,0.00017255]
[1740600752987,0.01454085,83978.0,83966.0,0.00017255]
[1740600753172,0.05922842,83975.0,83966.0,0.00017255]
[1740600753379,0.05922842,83975.0,83919.0,0.64299843]
[1740600753380,0.01454085,83968.0,83924.0,0.02]
[1740600753574,0.340131,83968.0,83930.0,0.02]
[1740600753801,0.340131,83968.0,83926.0,0.8751]
[1740600753802,0.011831,83968.0,83926.0,0.8751]
[1740600754859,0.011831,83968.0,83948.0,0.02]
[1740600754997,0.011831,83968.0,83952.0,0.0221]
[1740600755182,0.011831,83968.0,83956.0,0.02]
[1740600755389,0.011831,83968.0,83957.0,0.0773]
[1740600757015,0.011831,83968.0,83958.0,0.99029843]
[1740600757247,0.011831,83968.0,83967.0,0.11519843]
[1740600757584,0.011831,83968.0,83967.0,0.99029843]
[1740600759209,0.011831,83968.0,83967.0,0.99072193]
[1740600759659,1.16812735,83968.0,83967.0,0.99072193]
[1740600759866,0.00012427,83975.0,83974.0,0.02]
[1740600760072,1.16825162,83975.0,83974.0,0.8951]
[1740600760240,1.16825162,83975.0,83974.0,0.8751]
[1740600760741,1.16825162,83975.0,83974.0,0.8951]
[1740600761017,1.16825162,83975.0,83974.0,0.8751]
[1740600761212,1.16825162,83975.0,83974.0,0.8951]
[1740600761392,1.16825162,83975.0,83974.0,0.8751]
[1740600761599,1.16825162,83975.0,83974.0,0.8951]
[1740600762285,1.16825162,83975.0,83967.0,0.0004235]
[1740600762424,1.16825162,83975.0,83971.0,0.02]
[1740600763071,1.16825162,83975.0,83967.0,0.0004235]
[1740600763456,0.05974054,83974.0,83967.0,0.0004235]
[1740600763681,0.45493897,83974.0,83967.0,0.0004235]
[1740600764400,0.05962357,83972.0,83967.0,0.0004235]
[1740600765333,0.05962357,83972.0,83952.0,0.0021]
[1740600765562,0.05927223,83973.0,83952.0,0.0021]
[1740600766895,0.01454085,83955.0,83952.0,0.0021]
[1740600767254,0.07366536,83953.0,83952.0,0.0021]
[1740600767462,0.08702536,83953.0,83952.0,0.0021]
[1740600767886,0.07366536,83953.0,83952.0,0.0021]
[1740600768101,0.08702536,83953.0,83952.0,0.0021]
[1740600768299,0.65710136,83953.0,83952.0,0.0021]
[1740600768483,0.41532536,83953.0,83952.0,0.0021]
[1740600768986,0.40196536,83953.0,83952.0,0.0021]
[1740600769210,0.41532536,83953.0,83952.0,0.0021]
[1740600769587,0.71532536,83953.0,83952.0,0.0021]
[1740600769746,0.70078451,83953.0,83952.0,0.0021]
[1740600769950,0.68742451,83953.0,83952.0,0.0021]
[1740600770356,0.93280551,83953.0,83952.0,0.0021]
[1740600770579,0.69221251,83953.0,83952.0,0.0021]
[1740600770760,0.69221251,83953.0,83952.0,0.0025236]
[1740600771163,0.39221251,83953.0,83952.0,0.0025236]
[1740600771561,1.18090751,83953.0,83952.0,0.0025236]
[1740600771927,0.79293851,83953.0,83952.0,0.0025236]
[1740600772248,0.47734705,83953.0,83952.0,0.0025236]
[1740600772466,0.48421505,83953.0,83952.0,0.0025236]
[1740600772673,0.37662105,83953.0,83952.0,0.0025236]
[1740600772874,0.39002105,83953.0,83952.0,0.0025236]
[1740600773077,0.07662105,83953.0,83952.0,0.0025236]
[1740600775199,0.22789905,83953.0,83952.0,0.0025236]
[1740600775398,0.07662105,83953.0,83952.0,0.0025236]
[1740600775686,0.05919853,83954.0,83952.0,0.0025236]
[1740600775860,1.22773669,83953.0,83952.0,0.0025236]
[1740600776105,1.34004469,83953.0,83952.0,0.0025236]
[1740600776308,1.64004469,83953.0,83952.0,0.0025236]
[1740600776517,1.86082569,83953.0,83952.0,0.0025236]
[1740600776720,1.98274669,83953.0,83952.0,0.0025236]
[1740600777072,1.87422569,83953.0,83952.0,0.0025236]
[1740600777275,1.86082569,83953.0,83952.0,0.0025236]
[1740600777487,1.56082569,83953.0,83952.0,0.0025236]
[1740600777863,1.23252569,83953.0,83952.0,0.0025236]
[1740600778086,1.22773669,83953.0,83952.0,0.0025236]
[1740600778975,1.52773669,83953.0,83952.0,0.0025236]
[1740600779197,1.22773669,83953.0,83952.0,0.0025236]
[1740600780076,1.52773669,83953.0,83952.0,0.0025236]
[1740600783082,1.22773669,83953.0,83952.0,0.0025236]
[1740600783283,1.16812735,83953.0,83952.0,0.0025236]
[1740600785204,1.16812735,83953.0,83952.0,0.0225236]
[1740600785363,1.16812735,83953.0,83952.0,0.0025236]
[1740600785566,1.16812735,83953.0,83952.0,0.0225236]
[1740600785793,1.16812735,83953.0,83952.0,0.0025236]
[1740600786218,1.22773669,83953.0,83952.0,0.0025236]
[1740600786798,1.16812735,83953.0,83952.0,0.0225236]
[1740600787012,1.22773669,83953.0,83952.0,0.0025236]
[1740600788666,1.37008569,83953.0,83952.0,0.0025236]
[1740600788789,1.35717969,83953.0,83952.0,0.0025236]
[1740600789190,1.33930969,83953.0,83952.0,0.0025236]
[1740600790921,1.22773669,83953.0,83952.0,0.0025236]
[1740600791123,1.24109669,83953.0,83952.0,0.0025236]
[1740600792185,1.22773669,83953.0,83952.0,0.0025236]
[1740600792905,1.22773669,83953.0,83952.0,0.0477236]
[1740600793994,1.22773669,83953.0,83952.0,0.0677236]
[1740600795340,1.22773669,83953.0,83952.0,0.0477236]
[1740600795538,1.22773669,83953.0,83952.0,0.0677236]
[1740600795744,1.16812735,83953.0,83952.0,0.0677236]
[1740600795965,0.00012427,83975.0,83967.0,0.02]
[1740600796263,1.66812735,83968.0,83967.0,0.02]
[1740600796868,1.16812735,83968.0,83967.0,0.02]
[1740600797065,1.16812735,83968.0,83963.0,0.02]
[1740600797270,1.16812735,83968.0,83966.0,0.02]
[1740600797468,1.16812735,83968.0,83959.0,0.02]
[1740600797821,0.35965497,83967.0,83952.0,0.0477236]
[1740600798131,0.35965497,83967.0,83952.0,0.0025236]
[1740600798258,0.05977278,83965.0,83952.0,0.0025236]
[1740600798457,0.05919394,83962.0,83952.0,0.0025236]
[1740600798711,0.05930185,83959.0,83952.0,0.0025236]
[1740600798890,0.3,83958.0,83952.0,0.0025236]
[1740600799289,0.05918024,83957.0,83952.0,0.0025236]
[1740600799542,0.06396824,83957.0,83952.0,0.0025236]
[1740600800419,0.05970222,83958.0,83955.0,0.02]
[1740600800769,0.05970222,83958.0,83956.0,0.01797388]
[1740600800982,0.5008476,83972.0,83966.0,0.01797388]
[1740600801212,1.66897495,83972.0,83966.0,0.01797388]
[1740600801381,1.66897495,83972.0,83971.0,0.01797388]
[1740600801941,1.16897495,83972.0,83971.0,0.01797388]
[1740600803374,0.00012427,83975.0,83974.0,0.01797388]
[1740600803712,1.16825162,83975.0,83974.0,0.01797388]
[1740600804361,1.16825162,83975.0,83974.0,0.06407388]
[1740600804985,1.11825162,83975.0,83974.0,0.14317388]
[1740600805170,0.5,83990.0,83989.0,0.01797388]
[1740600805430,1.16816879,83990.0,83989.0,0.01797388]
[1740600807264,1.16816879,83990.0,83974.0,0.11768843]
[1740600807404,1.16816879,83990.0,83908.0,0.0012524]
[1740600807405,0.02,83972.0,83930.0,0.08316732]
[1740600807759,0.0593712,83971.0,83930.0,0.0815]
[1740600807990,0.3593712,83971.0,83930.0,0.0815]
[1740600808136,0.02,83966.0,83930.0,0.0815]
[1740600808320,0.05919216,83970.0,83930.0,0.0815]
[1740600808541,0.02,83967.0,83930.0,0.0815]
[1740600808726,0.0594141,83966.0,83931.0,0.09519843]
[1740600809337,0.0599048,83954.0,83930.0,0.0815]
[1740600809554,0.07901739,83953.0,83925.0,0.0001]
[1740600810126,0.42377267,83953.0,83925.0,0.0001]
[1740600810292,0.48593182,83953.0,83925.0,0.0001]
[1740600810474,0.38661082,83953.0,83952.0,0.00293805]
[1740600810674,0.40115167,83953.0,83952.0,0.00293805]
[1740600812447,0.42115167,83953.0,83952.0,0.00293805]
[1740600813222,0.37715167,83953.0,83952.0,0.00293805]
[1740600813739,0.31694706,83953.0,83952.0,0.00293805]
[1740600814571,0.31694706,83953.0,83925.0,0.0001]
[1740600814572,0.05993629,83951.0,83925.0,0.0001]
[1740600814712,0.05988714,83947.0,83925.0,0.0001]
[1740600815237,0.05988714,83947.0,83910.0,6.136e-05]
[1740600815238,0.01454085,83946.0,83910.0,6.136e-05]
[1740600815397,0.05943118,83941.0,83910.0,6.136e-05]
[1740600815596,0.05923241,83935.0,83910.0,6.136e-05]
[1740600815810,0.1256,83928.0,83910.0,6.136e-05]
[1740600816016,0.05977438,83921.0,83910.0,6.136e-05]
[1740600816229,0.05922528,83917.0,83890.0,0.0004232]
[1740600816462,0.1256,83913.0,83890.0,0.0004232]
[1740600816664,0.1256,83909.0,83890.0,0.0004232]
[1740600816867,0.02396,83906.0,83890.0,0.0004232]
[1740600817067,0.05972029,83904.0,83890.0,0.0004232]
[1740600817280,0.05907051,83902.0,83878.0,0.0354918]
[1740600817484,0.05979128,83893.0,83878.0,0.0354918]
[1740600817715,0.07271083,83892.0,83878.0,0.0354918]
[1740600818329,0.05975699,83888.0,83788.0,0.0005]
[1740600818657,0.05934066,83882.0,83788.0,0.0005]
[1740600818855,0.05914393,83874.0,83788.0,0.0005]
[1740600819033,1.16812735,83882.0,83804.0,0.0004234]
[1740600819034,0.1,83873.0,83804.0,0.0004234]
[1740600819235,0.05919206,83871.0,83804.0,0.0004234]
[1740600819394,0.01352,83872.0,83804.0,0.0004234]
[1740600819757,0.01352,83871.0,83804.0,0.0004234]
[1740600819991,0.05966099,83870.0,83804.0,0.0004234]
[1740600820533,0.1256,83865.0,83804.0,0.0004234]
[1740600820738,0.3593303,83860.0,83804.0,0.0004234]
[1740600820934,0.18550211,83853.0,83804.0,0.0004234]
[1740600821135,0.18477643,83851.0,83804.0,0.0004234]
[1740600821476,0.05905622,83843.0,83804.0,0.0004234]
[1740600821833,0.14014085,83842.0,83804.0,0.0004234]
[1740600822036,0.05989264,83839.0,83804.0,0.0004234]
[1740600822248,0.05973204,83835.0,83804.0,0.0004234]
[1740600822580,0.1256,83834.0,83804.0,0.0004234]
[1740600822724,0.05959116,83829.0,83804.0,0.0004234]
[1740600822931,1.22771851,83829.0,83804.0,0.0004234]